bitfinex/quotes_ETHUSD_20241203
["timestamp","ask_amount","ask_price","bid_price","bid_amount"]
[1733194277840,4.36809675,3655.5,3655.1,0.07232667]
[1733194278045,4.36809675,3655.5,3655.1,2.80815667]
[1733194278201,4.36809675,3655.5,3655.2,2.73581]
[1733194278404,4.36809675,3655.5,3654.4,0.273636]
[1733194278405,4.36809675,3655.5,3654.4,3.273636]
[1733194278604,3.10249675,3655.1,3654.9,2.73599]
[1733194278807,3.10249675,3655.1,3654.4,0.273636]
[1733194279001,1.2703,3655.0,3654.4,0.273636]
[1733194279333,1.2703,3655.0,3653.9,4.3039]
[1733194279334,1.2703,3655.0,3654.9,2.73605]
[1733194279702,3.10249675,3655.5,3654.2,3.0]
[1733194279918,3.10249675,3655.5,3654.4,1.2985]
[1733194280119,3.10249675,3655.1,3654.6,2.7362]
[1733194280433,1.3494,3655.0,3654.5,2.73632]
[1733194280632,1.3494,3655.0,3653.9,1.2985]
[1733194280937,1.3494,3655.0,3654.0,0.73090682]
[1733194281232,1.3494,3655.0,3654.5,2.73627]
[1733194281536,1.3494,3655.0,3654.7,2.73617]
[1733194281740,1.3494,3655.0,3654.5,2.73635]
[1733194282103,3.10249675,3654.7,3654.2,2.73653]
[1733194282628,3.10249675,3654.7,3654.4,2.73641]
[1733194282931,3.10249675,3654.7,3654.2,2.73656]
[1733194283336,3.10249675,3654.7,3653.7,0.02736625]
[1733194283543,3.10249675,3654.7,3654.3,2.73645]
[1733194283687,3.10249675,3654.7,3653.9,3.0]
[1733194283893,3.10249675,3654.7,3654.4,2.73642]
[1733194284088,1.3087,3654.6,3653.2,2.73728]
[1733194284293,3.10249675,3653.9,3653.2,2.73728]
[1733194284506,3.10249675,3653.9,3653.6,2.73702]
[1733194284843,3.10249675,3653.9,3653.7,2.73694]
[1733194285005,3.10249675,3653.9,3653.2,0.60138624]
[1733194285328,3.10249675,3653.9,3653.0,2.73743]
[1733194285548,3.10249675,3653.5,3652.9,2.7375]
[1733194285851,1.3051,3653.8,3653.1,2.73735]
[1733194286054,1.3051,3653.8,3652.7,0.02737473]
[1733194286196,1.3051,3654.2,3653.1,1.3248]
[1733194286393,1.3051,3654.2,3653.6,2.73696]
[1733194286609,1.3051,3654.2,3653.2,0.406227]
[1733194286828,1.3051,3654.2,3653.9,2.73678]
[1733194287054,1.3051,3654.2,3653.5,3.0]
[1733194287206,1.3051,3654.2,3653.7,2.73694]
[1733194287721,1.3051,3654.2,3653.8,2.73687]
[1733194287917,1.3051,3654.2,3653.5,3.0]
[1733194288260,1.3051,3654.2,3653.3,2.73723]
[1733194288261,1.3051,3654.0,3653.3,2.73721]
[1733194288419,1.3051,3654.0,3653.6,0.07329923]
[1733194288592,1.3051,3654.0,3653.3,2.73721]
[1733194288797,1.3051,3654.0,3653.7,2.7369]
[1733194289051,1.3051,3654.0,3652.6,1.3248]
[1733194289052,1.3051,3654.0,3653.8,0.07326908]
[1733194289336,1.3051,3654.0,3653.9,2.7368]
[1733194289638,1.3051,3654.0,3653.9,2.81002414]
[1733194289854,2.93576,3655.3,3654.1,2.7366]
[1733194290025,1.2371,3655.0,3654.2,0.07315901]
[1733194290228,4.37699675,3654.3,3653.6,3.0]
[1733194290402,4.37699675,3654.3,3654.2,2.73657]
[1733194290602,4.37699675,3654.3,3654.2,0.07306941]
[1733194290843,4.37699675,3654.3,3653.0,4.3407]
[1733194290999,4.37699675,3654.3,3653.7,2.73687]
[1733194291344,4.37699675,3654.3,3653.8,0.07314961]
[1733194291542,4.37699675,3654.3,3653.8,2.7368]
[1733194291830,4.37699675,3654.3,3653.9,0.07312956]
[1733194292037,4.37699675,3654.3,3653.9,2.73676]
[1733194292254,4.37699675,3654.3,3654.0,0.07310951]
[1733194292395,4.81469643,3654.3,3654.0,0.07310951]
[1733194292599,4.81469643,3654.3,3653.4,3.0]
[1733194292909,4.81469643,3654.3,3653.7,2.73692]
[1733194293112,4.81469643,3654.3,3653.5,0.07320977]
[1733194293445,4.81469643,3654.3,3653.6,0.07318972]
[1733194293605,4.81469643,3654.3,3653.3,3.0]
[1733194293800,3.10249675,3653.9,3653.4,0.07322983]
[1733194294021,1.2879,3653.8,3653.3,3.0]
[1733194294345,1.2879,3653.8,3653.4,0.07322983]
[1733194294653,1.2879,3653.8,3653.5,0.07320977]
[1733194294823,1.2879,3653.8,3653.7,2.73695]
[1733194295008,1.2879,3653.8,3653.7,2.81011966]
[1733194296248,1.2879,3653.8,3653.7,0.07316966]
[1733194296460,1.2879,3653.8,3653.5,2.73708]
[1733194296668,1.2879,3653.8,3653.7,0.07316966]
[1733194296827,1.2879,3653.8,3653.5,2.73708]
[1733194297028,1.2879,3653.8,3653.6,0.07318972]
[1733194297538,1.2879,3653.8,3653.6,2.81019972]
[1733194297742,1.2879,3653.8,3653.7,2.73695]
[1733194297960,1.2879,3653.8,3653.7,0.07076748]
[1733194298331,1.2879,3653.8,3653.5,2.73707]
[1733194298631,1.2879,3653.8,3653.6,0.07113599]
[1733194298829,1.2879,3653.8,3653.0,3.0]
[1733194299051,3.10249675,3653.5,3653.1,0.07124126]
[1733194299267,3.10249675,3653.5,3653.2,2.7373]
[1733194299433,3.10249675,3653.5,3653.2,2.80852119]
[1733194299636,3.10249675,3653.5,3653.2,0.07122119]
[1733194299834,3.10249675,3653.5,3653.0,2.73747]
[1733194300066,3.10249675,3653.5,3653.2,2.73732]
[1733194300563,3.10249675,3653.5,3653.3,0.07120114]
[1733194300772,3.10249675,3653.5,3653.4,2.73717]
[1733194300981,3.10249675,3653.5,3653.3,0.07120114]
[1733194301274,3.10249675,3653.5,3653.4,0.07133044]
[1733194301566,3.10249675,3653.5,3653.2,2.7373]
[1733194301770,3.10249675,3653.5,3653.4,0.07133044]
[1733194301969,3.10249675,3653.5,3653.3,0.0713505]
[1733194302267,3.10249675,3653.5,3653.4,0.07133044]
[1733194302464,3.10249675,3653.5,3653.1,2.73737]
[1733194302670,3.10249675,3653.5,3653.4,0.07133044]
[1733194302976,3.10249675,3653.5,3653.1,2.73737]
[1733194303133,3.10249675,3653.5,3653.4,0.07133044]
[1733194303330,3.10249675,3653.5,3652.4,1.339]
[1733194303649,1.2879,3653.8,3653.7,2.73695]
[1733194303845,1.2879,3653.8,3653.7,2.80822027]
[1733194304781,1.2879,3653.8,3653.7,0.07127027]
[1733194305142,1.2879,3653.8,3653.6,2.73702]
[1733194305343,1.2879,3653.8,3653.1,2.73735]
[1733194305344,2.63245749,3654.3,3654.1,2.73662]
[1733194305571,0.55037877,3654.2,3654.1,2.73662]
[1733194306676,0.55037877,3654.2,3653.9,2.73678]
[1733194306847,0.55037877,3654.2,3654.0,2.73669]
[1733194307047,0.55037877,3654.2,3653.5,2.73704]
[1733194307353,0.55037877,3654.2,3653.6,2.73702]
[1733194307558,0.55037877,3654.2,3653.9,2.73676]
[1733194308054,0.55037877,3654.2,3653.3,2.76461947]
[1733194308409,2.63245749,3654.3,3654.2,2.73657]
[1733194308894,0.53673438,3654.6,3654.5,2.73634]
[1733194309385,0.53673438,3654.6,3653.6,2.73702]
[1733194309386,0.53673438,3654.6,3654.1,2.73664]
[1733194309544,2.63245749,3654.3,3654.2,2.73657]
[1733194310379,3.94295749,3654.7,3654.5,2.73628]
[1733194311348,3.94295749,3654.7,3654.0,2.73665]
[1733194311693,3.94295749,3654.7,3654.4,2.73642]
[1733194312197,3.94295749,3654.7,3653.9,1.233]
[1733194312391,2.63245749,3654.7,3654.6,2.73627]
[1733194312962,3.92185749,3655.1,3654.6,2.73627]
[1733194313157,3.92185749,3655.1,3654.9,2.73598]
[1733194313460,3.92185749,3655.1,3655.0,2.73597]
[1733194314601,2.63245749,3655.1,3655.0,2.73597]
[1733194314808,2.63245749,3655.5,3655.3,2.73575]
[1733194314988,2.63245749,3655.5,3655.4,2.73567]
[1733194315300,2.63245749,3655.5,3655.2,2.73576]
[1733194315482,2.63245749,3655.5,3654.7,0.02735906]
[1733194315690,2.63245749,3655.5,3655.4,2.73567]
[1733194316698,1.74315604,3656.2,3655.9,2.7353]
[1733194316862,1.74315604,3656.2,3654.6,1.2463]
[1733194317058,2.63245749,3655.9,3655.6,2.73551]
[1733194317688,2.63245749,3655.9,3654.7,0.725622]
[1733194317904,2.63245749,3656.7,3655.8,1.2798]
[1733194318077,0.54002387,3657.0,3656.0,2.73518]
[1733194318276,1.3531,3657.2,3656.8,2.73462]
[1733194318277,2.63245749,3657.1,3656.8,2.73462]
[1733194318474,0.39855575,3657.0,3656.6,2.73477]
[1733194318783,2.63245749,3656.7,3656.6,2.73477]
[1733194319299,2.63245749,3656.7,3655.8,4.01517]
[1733194319300,2.63245749,3656.7,3655.8,1.2798]
[1733194319501,2.63245749,3655.9,3655.2,1.2578]
[1733194319702,2.63245749,3655.9,3655.8,2.73537]
[1733194320209,2.63245749,3655.9,3655.5,2.73552]
[1733194320509,2.63245749,3655.9,3655.3,2.73572]
[1733194320510,1.3264,3655.8,3655.3,2.73572]
[1733194320701,1.3264,3655.8,3655.5,2.73559]
[1733194321363,2.63245749,3655.9,3655.6,2.73552]
[1733194321558,1.86353543,3656.0,3655.7,2.73545]
[1733194321758,1.3264,3656.0,3654.9,2.76334514]
[1733194321991,1.3264,3656.0,3655.7,2.7354]
[1733194322200,1.3264,3656.0,3655.8,2.73537]
[1733194322803,1.3264,3656.0,3655.3,2.76310476]
[1733194323010,1.3264,3656.0,3655.6,2.73551]
[1733194323304,1.3264,3656.0,3655.3,2.73573]
[1733194323798,1.3264,3656.0,3655.0,0.40073451]
[1733194324159,1.3264,3656.0,3655.4,2.73563]
[1733194324360,1.3264,3656.0,3654.6,2.73627]
[1733194324361,1.3363,3655.5,3654.4,2.73642]
[1733194324608,1.3363,3655.5,3655.2,2.73579]
[1733194324827,1.3363,3655.5,3655.2,2.73576]
[1733194325033,1.2904,3656.1,3655.2,2.73577]
[1733194325231,1.2904,3656.1,3655.4,2.73562]
[1733194325518,3.10702349,3656.0,3655.5,2.73558]
[1733194325888,3.10702349,3656.0,3655.6,2.73551]
[1733194326087,1.2904,3656.1,3655.8,2.73537]
[1733194327191,1.2904,3656.1,3655.8,2.73535]
[1733194327432,0.53582134,3656.3,3656.0,2.73522]
[1733194327732,4.36532349,3656.8,3655.3,1.2253]
[1733194327944,4.36532349,3656.8,3655.9,2.73523]
[1733194328258,3.10702349,3656.0,3655.0,0.2735]
[1733194328466,0.55067677,3656.5,3655.0,0.2735]
[1733194328467,3.10702349,3655.6,3655.0,3.00946]
[1733194328676,3.10702349,3655.6,3654.6,0.2735]
[1733194328956,3.10702349,3655.6,3654.8,2.73611]
[1733194328957,1.3536,3655.5,3654.8,2.73611]
[1733194329166,3.10702349,3655.2,3654.6,0.2735]
[1733194329521,3.10702349,3655.2,3654.6,3.00976]
[1733194330356,3.10702349,3655.2,3654.7,2.7362]
[1733194330660,3.10702349,3655.2,3654.6,2.73627]
[1733194331024,3.10702349,3655.2,3654.4,3.00991]
[1733194331224,3.65327456,3655.2,3654.6,2.73623]
[1733194331957,3.65327456,3655.2,3654.4,2.73639]
[1733194332262,3.65327456,3655.2,3654.1,3.97069]
[1733194332461,3.10702349,3655.2,3654.5,2.73635]
[1733194332769,3.10702349,3655.2,3654.6,2.73623]
[1733194333136,3.10702349,3655.2,3654.7,0.06875113]
[1733194333550,3.10702349,3655.2,3654.3,2.73645]
[1733194333551,3.10702349,3655.2,3654.3,0.02736311]
[1733194333755,1.3536,3655.5,3654.8,0.06938272]
[1733194333924,3.10702349,3655.2,3654.7,2.73617]
[1733194334126,3.10702349,3655.2,3654.9,0.06936268]
[1733194334422,1.3114,3655.1,3654.2,2.73657]
[1733194334641,1.3114,3654.5,3654.1,2.73664]
[1733194335073,1.3114,3654.5,3653.5,1.3245]
[1733194335074,1.3114,3654.5,3653.8,2.73687]
[1733194335258,1.3114,3654.5,3654.2,2.7365]
[1733194335454,3.10702349,3654.6,3654.3,2.73648]
[1733194336964,3.10702349,3654.6,3653.9,0.273687]
[1733194337185,3.6597745,3654.6,3653.5,1.3245]
[1733194337355,3.6597745,3654.6,3653.3,2.73718]
[1733194337356,3.10702349,3653.7,3653.3,2.73718]
[1733194337896,3.10702349,3653.7,3652.9,4.05369]
[1733194337897,3.10702349,3653.7,3653.1,2.73738]
[1733194338054,3.10702349,3653.7,3652.9,1.3162]
[1733194338687,3.10702349,3653.7,3653.4,2.73715]
[1733194339090,3.10702349,3653.7,3652.9,1.3162]
[1733194339291,3.10702349,3653.7,3653.2,2.73725]
[1733194339500,3.10702349,3653.7,3653.0,2.73742]
[1733194339795,3.10702349,3654.1,3653.4,2.73716]
[1733194340006,3.6438877,3654.1,3653.6,2.73701]
[1733194340505,3.6438877,3654.1,3653.4,2.73716]
[1733194341106,4.13068647,3654.1,3653.0,0.02737191]
[1733194341260,3.6438877,3654.1,3653.7,2.73694]
[1733194342761,3.6438877,3654.1,3653.1,2.7374]
[1733194342954,3.6438877,3654.1,3653.5,2.73709]
[1733194343556,3.6438877,3654.1,3653.0,2.76484196]
[1733194343769,3.6438877,3654.1,3653.1,0.02737161]
[1733194344006,3.6438877,3654.1,3653.8,2.73686]
[1733194344198,3.6438877,3654.1,3653.6,2.73702]
[1733194344397,3.6438877,3654.1,3653.4,2.73716]
[1733194344572,3.6438877,3654.1,3653.6,2.73695]
[1733194344771,3.6438877,3654.1,3653.6,2.737]
[1733194345511,3.6438877,3654.1,3652.9,4.74782]
[1733194345824,3.6438877,3654.1,3653.7,2.73691]
[1733194347611,3.6438877,3654.1,3653.0,3.748544]
[1733194347779,3.6438877,3654.1,3653.8,2.73685]
[1733194347979,1.3443,3654.0,3653.0,5.73746]
[1733194348292,1.3443,3653.4,3653.0,5.73746]
[1733194349110,1.3443,3653.4,3653.0,3.0]
[1733194349414,3.10702349,3653.5,3653.4,2.73717]
[1733194349602,3.10702349,3653.5,3653.0,3.3]
[1733194350312,3.10702349,3653.5,3653.2,2.73728]
[1733194351111,3.10702349,3653.5,3653.4,2.73717]
[1733194351315,3.10702349,3653.5,3653.2,2.73732]
[1733194352282,3.10702349,3653.5,3653.1,3.0]
[1733194352483,3.10702349,3653.5,3653.2,2.73732]
[1733194352678,3.55215584,3653.5,3652.4,0.2735]
[1733194352992,3.10702349,3652.9,3652.7,3.0]
[1733194353208,3.10702349,3652.9,3652.6,2.7377]
[1733194353395,3.10702349,3652.9,3652.7,2.73768]
[1733194353587,3.66047998,3653.3,3652.9,2.73752]
[1733194353797,3.66047998,3653.3,3652.7,2.73769]
[1733194354194,3.10702349,3652.9,3652.5,2.73783]
[1733194354735,1.3507,3652.8,3652.5,2.73783]
[1733194356627,1.3507,3652.8,3652.5,2.73779]
[1733194357639,2.63410695,3652.7,3652.5,2.73785]
[1733194357835,2.63410695,3652.7,3652.3,2.73798]
[1733194358132,2.63410695,3652.7,3651.9,3.0]
[1733194358335,2.63410695,3652.0,3651.6,0.08903743]
[1733194358540,2.63410695,3652.0,3651.9,2.7383]
[1733194359735,3.11375709,3652.0,3651.9,2.7383]
[1733194359891,3.11375709,3652.0,3651.9,5.7383]
[1733194361936,3.11375709,3652.0,3651.8,3.0]
[1733194362119,3.11375709,3652.0,3651.7,2.73843]
[1733194362451,3.11375709,3652.0,3651.6,0.08903743]
[1733194362601,3.11375709,3652.0,3651.8,2.73834]
[1733194363141,3.11375709,3652.0,3651.9,0.07185169]
[1733194363815,3.11375709,3652.0,3651.6,2.82753743]
[1733194363993,3.11375709,3652.0,3651.7,2.73843]
[1733194364333,3.11375709,3652.0,3651.7,2.81027184]
[1733194364500,3.41764901,3652.0,3651.7,2.81027184]
[1733194364891,3.11375709,3652.0,3651.7,2.81027184]
[1733194365115,3.11375709,3652.0,3651.9,2.7383]
[1733194365332,3.11375709,3652.0,3651.8,2.73837]
[1733194365546,3.11375709,3652.0,3651.9,0.07185169]
[1733194366024,3.11375709,3652.0,3651.6,2.82753743]
[1733194366333,4.37115709,3652.0,3651.6,2.82753743]
[1733194366543,0.55,3651.9,3651.7,0.06963798]
[1733194366696,3.11375709,3651.8,3650.7,2.73919]
[1733194366902,3.11375709,3650.8,3650.7,2.73919]
[1733194367296,3.11375709,3650.8,3650.6,2.73927]
[1733194368522,3.11375709,3650.8,3650.7,2.7392]
[1733194370638,4.42345709,3651.2,3650.2,5.73951]
[1733194370833,4.42345709,3651.2,3650.4,3.0]
[1733194371145,4.42345709,3651.2,3650.7,2.73914]
[1733194371339,4.8658028,3651.2,3650.7,2.73914]
[1733194371833,3.11375709,3650.8,3650.7,2.73914]
[1733194372031,3.11375709,3650.8,3650.5,2.73933]
[1733194372231,3.11375709,3650.8,3650.5,2.73928]
[1733194373143,3.11375709,3650.8,3650.4,2.73941]
[1733194373342,0.36735167,3650.7,3650.2,3.0]
[1733194373577,0.55975959,3650.9,3650.8,2.73912]
[1733194373867,0.55975959,3650.9,3650.5,2.7393]
[1733194374084,3.11375709,3650.8,3650.7,2.7392]
[1733194374436,3.11375709,3650.8,3650.7,2.80786464]
[1733194374838,4.42345709,3651.2,3651.1,2.7389]
[1733194375039,3.11375709,3651.2,3651.1,2.7389]
[1733194375246,3.11375709,3651.2,3651.1,2.80742951]
[1733194375468,1.335,3651.5,3651.4,2.73867]
[1733194375780,3.11375709,3651.6,3651.5,2.7386]
[1733194376150,3.11375709,3651.6,3651.5,2.80704919]
[1733194377938,3.11375709,3651.6,3651.5,0.06844919]
[1733194377939,5.98250437,3651.6,3651.5,0.06844919]
[1733194378281,5.98250437,3651.6,3650.8,2.73911]
[1733194378480,3.11375709,3651.1,3650.8,2.7391]
[1733194378647,3.11375709,3651.1,3650.9,0.06860446]
[1733194379685,2.63684381,3651.0,3650.9,0.06860446]
[1733194379853,2.63684381,3651.0,3650.5,3.0]
[1733194380188,3.94034381,3651.0,3650.5,2.7393]
[1733194380342,3.94034381,3651.0,3650.6,0.06889877]
[1733194381090,1.3096,3652.2,3650.9,1.27]
[1733194381398,0.5599513,3652.2,3652.1,2.73809]
[1733194381891,0.5599513,3652.2,3652.1,2.80668756]
[1733194382356,3.94644381,3652.5,3652.1,0.06859756]
[1733194382784,3.94644381,3652.5,3651.2,1.27]
[1733194382982,2.63684381,3652.0,3651.2,7.00877]
[1733194383148,2.63684381,3652.0,3651.9,2.7383]
[1733194383350,2.63684381,3652.4,3652.3,2.73797]
[1733194383581,0.55019109,3652.5,3652.3,2.73797]
[1733194383789,0.55019109,3652.5,3652.3,2.8037529]
[1733194384761,3.11278537,3652.6,3652.3,0.0657829]
[1733194385187,3.11278537,3652.6,3652.3,2.73798]
[1733194385359,3.11278537,3652.6,3652.4,0.06565333]
[1733194385869,3.11278537,3652.6,3652.4,2.80357333]
[1733194386075,3.11278537,3653.0,3652.4,0.06565333]
[1733194386255,3.11278537,3653.0,3652.7,2.73769]
[1733194386462,3.11278537,3653.0,3652.8,0.06552827]
[1733194386670,3.11278537,3653.0,3652.8,2.73761]
[1733194386861,3.11278537,3653.0,3652.9,0.06550821]
[1733194387283,3.11278537,3653.0,3652.3,2.73795]
[1733194387597,0.55111851,3653.0,3652.4,2.80335929]
[1733194387803,3.11278537,3653.2,3652.9,2.73755]
[1733194387973,3.42406391,3653.2,3653.0,2.73747]
[1733194388312,3.42406391,3653.2,3653.0,2.80268446]
[1733194388903,0.54722659,3653.1,3653.0,2.80268446]
[1733194389059,0.54722659,3653.1,3653.0,0.06521446]
[1733194389261,0.54722659,3653.1,3652.6,3.97397]
[1733194389456,1.07182564,3653.1,3652.7,0.06527465]
[1733194389657,1.07182564,3653.1,3652.8,2.73761]
[1733194389863,1.07182564,3653.1,3652.9,0.06523453]
[1733194390098,1.07182564,3653.1,3652.2,1.3071]
[1733194390290,1.07182564,3653.1,3652.3,0.06470292]
[1733194390596,0.57705896,3653.0,3652.3,0.06470292]
[1733194390800,0.57705896,3653.0,3652.3,3.06470292]
[1733194390962,0.57705896,3653.0,3652.7,2.73768]
[1733194391316,0.57705896,3653.0,3652.8,0.06465731]
[1733194391517,0.57705896,3653.0,3652.7,2.73768]
[1733194391670,0.54722659,3653.1,3652.9,2.73751]
[1733194392011,0.54722659,3653.1,3653.0,0.06461719]
[1733194392299,1.09722659,3653.1,3653.0,0.06461719]
[1733194392502,1.2718,3652.5,3651.2,1.2823]
[1733194392701,1.2718,3652.5,3651.3,0.06274479]
[1733194392864,1.2718,3652.5,3651.4,2.73867]
[1733194392865,0.43845854,3652.4,3651.4,2.73867]
[1733194393065,0.43845854,3652.4,3651.5,0.06270463]
[1733194393365,0.43845854,3652.4,3651.4,2.73867]
[1733194393709,0.43845854,3652.4,3651.5,0.06270463]
[1733194393907,3.11278537,3652.2,3651.5,2.73858]
[1733194394118,0.35512439,3652.1,3651.6,2.80113455]
[1733194394416,0.35512439,3652.1,3651.6,0.06268455]
[1733194394571,1.349,3652.0,3651.6,0.06268455]
[1733194394777,1.349,3652.0,3651.4,2.73864]
[1733194395041,1.349,3652.0,3651.7,0.06266447]
[1733194395310,0.48169098,3651.9,3651.8,0.0626444]
[1733194395477,0.48169098,3651.9,3651.4,2.7386]
[1733194395812,0.48169098,3651.9,3651.5,2.80129463]
[1733194397373,1.349,3652.0,3651.5,0.06270463]
[1733194397719,0.54686857,3651.9,3650.8,1.3362]
[1733194397912,1.2807,3651.7,3650.9,0.06282512]
[1733194398272,1.2807,3651.7,3650.7,2.7392]
[1733194398471,1.2807,3651.7,3651.1,2.73888]
[1733194398672,0.49403539,3651.6,3651.2,0.06276487]
[1733194399122,1.3069,3651.3,3651.2,0.06276487]
[1733194399324,1.3069,3651.3,3650.1,1.2413]
[1733194399531,1.3069,3651.3,3650.8,2.73912]
[1733194399827,1.3069,3651.3,3650.9,0.06361654]
[1733194399998,0.44196854,3651.2,3650.9,0.06361654]
[1733194400321,0.44196854,3651.2,3651.0,0.06359646]
[1733194400503,0.44196854,3651.2,3650.7,2.73918]
[1733194400830,0.44196854,3651.2,3650.8,0.06382587]
[1733194400995,3.11278537,3651.0,3650.8,0.06382587]
[1733194401196,0.35547539,3650.9,3650.6,2.73926]
[1733194401429,3.11278537,3651.0,3650.9,0.06380579]
[1733194401926,3.11278537,3651.0,3650.4,2.73941]
[1733194402125,3.11278537,3651.0,3650.5,0.06388614]
[1733194402724,3.11278537,3651.0,3650.5,2.80319614]
[1733194402933,3.11278537,3651.0,3650.7,2.73918]
[1733194403221,0.53488658,3651.0,3650.8,2.80293587]
[1733194405593,1.02691342,3651.0,3650.8,0.06382587]
[1733194405993,1.02691342,3651.0,3650.1,4.2413]
[1733194405994,1.02691342,3651.0,3650.4,2.73942]
[1733194406204,2.63651331,3650.8,3650.4,2.73942]
[1733194406419,2.63651331,3650.8,3650.5,0.06490169]
[1733194406818,2.63651331,3650.8,3650.6,2.73926]
[1733194407350,2.63651331,3650.8,3650.7,0.06486151]
[1733194407715,2.63651331,3650.8,3650.6,2.73926]
[1733194407934,2.63651331,3650.8,3650.7,0.06486151]
[1733194408249,2.63651331,3650.8,3650.6,2.73926]
[1733194408444,2.63651331,3650.8,3650.7,0.06486151]
[1733194408647,0.53488658,3651.0,3650.7,2.7392]
[1733194409143,0.53488658,3651.0,3650.8,0.06484143]
[1733194410321,0.53488658,3651.0,3650.8,2.80393143]
[1733194410527,0.53488658,3651.0,3650.9,2.73905]
[1733194410721,0.53488658,3651.0,3650.9,2.80390621]
[1733194411459,0.53488658,3651.0,3650.9,0.06485621]
[1733194411966,0.53488658,3651.0,3650.3,1.3501]
[1733194411967,1.2716,3650.9,3650.3,1.3501]
[1733194412111,1.2716,3650.9,3650.5,2.73933]
[1733194412446,1.2716,3650.9,3650.3,2.73944]
[1733194413253,1.2716,3650.9,3650.5,2.73934]
[1733194413415,1.71589999,3650.9,3650.5,2.73934]
[1733194413610,1.71589999,3650.9,3650.0,1.3372]
[1733194413842,0.53488658,3651.0,3650.0,1.3372]
[1733194414046,0.53488658,3651.0,3650.7,2.73918]
[1733194414253,0.53488658,3651.0,3650.3,2.73948]
[1733194414557,0.53488658,3651.0,3650.9,2.73905]
[1733194414969,0.53488658,3651.0,3650.7,2.73917]
[1733194415963,0.53488658,3651.0,3650.8,2.73906]
[1733194416159,0.53488658,3651.0,3650.4,2.73942]
[1733194416337,0.53488658,3651.0,3650.9,2.73905]
[1733194416661,0.54091842,3651.1,3650.5,0.399862]
[1733194416837,2.63651331,3651.5,3650.5,0.399862]
[1733194417044,2.63651331,3651.5,3651.3,2.73873]
[1733194418060,0.54945566,3651.6,3651.5,2.73856]
[1733194418359,3.92821331,3651.9,3651.6,2.7385]
[1733194418666,3.92821331,3651.9,3651.7,2.73841]
[1733194418861,2.63651331,3651.9,3651.8,2.73837]
[1733194419074,2.63651331,3652.3,3651.8,1.2474]
[1733194419227,1.3527,3652.7,3650.8,2.73912]
[1733194419228,0.55115541,3652.1,3651.2,2.73882]
[1733194419425,0.55115541,3652.1,3652.0,2.73822]
[1733194420022,2.63651331,3652.6,3652.0,2.73822]
[1733194421423,2.63651331,3652.6,3651.7,1.2474]
[1733194421631,3.18947812,3652.2,3651.8,2.73835]
[1733194421847,3.18947812,3652.2,3651.9,2.73828]
[1733194423125,3.18947812,3652.2,3652.0,0.06417223]
[1733194423370,2.63651331,3652.2,3652.1,2.73815]
[1733194423570,2.63651331,3652.2,3652.1,2.80230216]
[1733194424259,2.63651331,3652.6,3652.3,2.73793]
[1733194424563,3.03543464,3652.6,3652.1,0.06415216]
[1733194424761,3.03543464,3652.6,3652.4,0.06408199]
[1733194424924,3.03543464,3652.6,3652.1,2.73813]
[1733194425131,3.03543464,3652.6,3652.2,0.06412213]
[1733194425479,3.03543464,3652.6,3652.2,2.73807]
[1733194425645,3.03543464,3652.6,3652.3,0.06410206]
[1733194425852,3.03543464,3652.6,3652.2,2.73807]
[1733194426053,3.03543464,3652.6,3652.4,0.06408199]
[1733194426366,3.03543464,3652.6,3652.5,0.06406192]
[1733194426536,3.03543464,3652.6,3652.2,2.73807]
[1733194426737,3.03543464,3652.6,3652.3,0.06410206]
[1733194426972,0.43881346,3652.5,3652.0,2.7382]
[1733194427171,3.18203612,3652.6,3652.0,2.7382]
[1733194427479,3.18203612,3652.6,3652.1,2.8022422]
[1733194429344,3.18651331,3652.2,3652.1,0.0641422]
[1733194429574,3.18651331,3652.2,3651.4,2.73867]
[1733194429894,3.18651331,3652.2,3650.1,2.73959]
[1733194429895,3.89801331,3651.6,3651.5,0.06348591]
[1733194430243,3.89801331,3651.6,3650.7,1.2458]
[1733194430477,2.63651331,3651.2,3650.9,2.73903]
[1733194430682,2.63651331,3651.2,3650.7,1.2458]
[1733194430879,2.63651331,3651.2,3651.0,0.06358631]
[1733194431088,2.63651331,3651.2,3650.7,1.2458]
[1733194431244,2.63651331,3651.2,3651.1,0.06356623]
[1733194431449,2.63651331,3651.2,3650.7,1.2458]
[1733194431450,2.63651331,3651.2,3650.7,2.73918]
[1733194431644,2.63651331,3651.2,3651.1,0.06356623]
[1733194431874,2.90016464,3651.2,3650.5,2.73934]
[1733194432043,2.63651331,3650.8,3650.5,2.73934]
[1733194433269,2.63651331,3650.8,3650.1,4.29299]
[1733194433650,2.63651331,3650.8,3650.5,2.73933]
[1733194434370,2.63651331,3650.8,3650.1,4.5534]
[1733194434680,2.63651331,3650.8,3650.5,2.73931]
[1733194434883,2.63651331,3650.8,3650.1,4.5534]
[1733194435044,2.63651331,3650.8,3650.4,2.73938]
[1733194435981,2.63651331,3650.8,3650.1,4.5534]
[1733194436144,3.03027464,3650.8,3650.2,2.73957]
[1733194436357,3.03027464,3650.8,3650.1,4.5534]
[1733194436555,3.03027464,3650.8,3650.4,2.73942]
[1733194436797,0.54656014,3650.6,3650.4,2.73942]
[1733194437994,0.54656014,3650.6,3650.5,0.06431413]
[1733194439156,0.99497749,3650.6,3650.5,0.06431413]
[1733194439362,0.99497749,3650.6,3650.2,2.73956]
[1733194439657,0.54656014,3650.6,3650.3,0.06444397]
[1733194439871,0.54656014,3650.6,3650.5,2.73935]
[1733194440285,0.54656014,3650.6,3650.5,2.80375379]
[1733194441409,0.54656014,3650.6,3650.5,4.08725379]
[1733194441976,2.63651331,3651.3,3650.5,1.34790379]
[1733194442181,1.3561,3652.0,3651.2,1.2835]
[1733194442363,2.63651331,3651.6,3651.4,2.73862]
[1733194442559,2.63651331,3651.6,3651.5,0.06420295]
[1733194443972,2.63651331,3651.6,3651.3,2.73872]
[1733194444197,2.63651331,3651.6,3651.4,0.06435736]
[1733194444405,1.2546,3652.4,3651.5,1.3368]
[1733194444619,2.63651331,3652.2,3651.5,1.40113728]
[1733194445126,2.63651331,3652.2,3651.7,2.73837]
[1733194445504,2.63651331,3652.2,3651.8,0.06427207]
[1733194445675,0.38911133,3652.1,3651.5,1.3368]
[1733194445876,0.55723242,3652.0,3651.9,2.802552]
[1733194446107,0.55723242,3652.0,3651.9,2.7383]
[1733194446311,0.55723242,3652.0,3651.9,0.064252]